Cogmind - Beta 15 @@@ ROGUE MODE // 2025.05.24 @ 20:39:44 Player: Trione Result: Destroyed by Piercing Trap Performance ------------- Evolutions (0) 0 Regions Visited (2) 400 Robots Destroyed (32) 160 Value Destroyed (632) 632 Prototype IDs (0) 0 Alien Tech Used (0) 0 Bonus (0) 0 TOTAL SCORE: 1192 Bonus ------- None Cogmind --------- Core Integrity 0/250 Matter 375/500 Energy 246/250 System Corruption 0% Temperature Cool (2) Movement Treading (160) Location -10/Subcaves Parts ------- > --- POWER (1) -------- Ion Engine > --- PROPULSION (2) --- Light Treads Spiked Treads > --- UTILITY (2) ------ Medium Storage Unit High-capacity Matter Pod > --- WEAPON (2) ------- Subdweller Machine Gun Light Cannon > --- INVENTORY (10) --- Light Treads Light Treads Light Treads Compact Wheel High-capacity Matter Pod (200) EM Pulse Gun Subdweller Laser Light Cannon Light Cannon Peak State ------------ > --- POWER ------------ Ion Engine > --- PROPULSION ------- Light Treads Spiked Treads > --- UTILITY ---------- Medium Storage Unit Seismic Detector > --- WEAPON ----------- Subdweller Laser Light Cannon > --- INVENTORY -------- Ion Engine Light Treads Light Treads Compact Wheel High-capacity Matter Pod High-capacity Matter Pod EM Pulse Gun Subdweller Machine Gun Light Cannon Light Cannon [Rating: 10] Favorites ----------- Power Ion Engine Engine Ion Engine Propulsion Light Treads Treads Light Treads Wheel Compact Wheel Utility Seismic Detector Device Seismic Detector Storage Medium Storage Unit Weapon Light Cannon Energy Gun Subdweller Laser Ballistic Gun Assault Rifle Ballistic Cannon Light Cannon Slashing Weapon Mining Claw Build | -11 -10 -10 ------- Run | Yrd Mat Sub Slots Evolved . | . . . Power . | . . . Propulsion . | . . . Utility . | . . . Weapon . | . . . Parts Attached 27 | 7 14 6 Power 4 | 1 2 1 Engine 4 | 1 2 1 Core . | . . . Reactor . | . . . Propulsion 9 | 2 5 2 Treads 6 | . 4 2 Leg . | . . . Wheel 3 | 2 1 . Hover . | . . . Flight . | . . . Utility 4 | 2 1 1 Device 1 | 1 . . Storage 3 | 1 1 1 Processor . | . . . Hackware . | . . . Protection . | . . . Artifact . | . . . Weapon 10 | 2 6 2 Energy Gun 2 | . 1 1 Energy Cannon . | . . . Ballistic Gun 4 | 2 1 1 Ballistic Cannon 3 | . 3 . Launcher . | . . . Special Weapon . | . . . Impact Weapon . | . . . Slashing Weapon 1 | . 1 . Piercing Weapon . | . . . Special Melee Weapon . | . . . Unidentified Prototypes . | . . . Parts Lost 2 | . . 2 Power 1 | . . 1 Propulsion . | . . . Utility 1 | . . 1 Weapon . | . . . Highest Loss Streak 1 | . . 1 To Critical Strikes . | . . . Average Backups 8 | 4 8 9 Power . | . 1 . Propulsion 3 | 3 3 3 Utility 1 | . 1 1 Weapon 3 | . 2 4 Tool/Special . | . . . Unused Backups 6 | . 5 1 Power 1 | . 1 . Propulsion 3 | . 3 . Utility 1 | . . 1 Weapon 1 | . 1 . Tool/Special . | . . . Average Slot Usage (%) 99 | . 100 99 Engine 14 | . 14 14 Treads 19 | . 15 24 Wheel 8 | . 12 3 Device 13 | . 14 12 Storage 14 | . 14 15 Energy Gun 1 | . . 3 Ballistic Gun 13 | . 16 9 Ballistic Cannon 10 | . 8 14 Slashing Weapon 2 | . 3 1 Peak Build Rating 10 | 7 8 10 Average Rating 8 | 5 7 9 On Entrance 5 | . 7 8 Naked Turns . | . . . Heaviest Build 26 | 12 22 26 Greatest Support 40 | 32 40 40 Greatest Overweight (x) 1 | . 1 1 Average Overweight (x) . | . . . Largest Inventory Capacity 10 | 8 10 10 Average Capacity 9 | 6 9 10 Most Carried 10 | 6 10 10 Average Carried 9 | 4 8 9 Final Capacity 10 | 8 10 10 Final Carried 10 | 6 10 9 Class Distribution -------------------- 100% | Mutant Dominant Class ---------------- Mutant | -10/Materials Mutant | -10/Subcaves Resources | -11 -10 -10 ----------- Run | Yrd Mat Sub Matter Collected 1323 | 290 807 226 Remotely . | . . . Salvage Created 1128 | 107 807 214 Parts 66 | 9 44 13 Haulers Intercepted 2 | . 2 . Recyclers Shooed 6 | 1 5 . Parts Field Recycled . | . . . Retrieved Matter . | . . . Parts Self-Destructed . | . . . Prevented . | . . . Kills | -11 -10 -10 ------- Run | Yrd Mat Sub Combat Hostiles Destroyed 19 | . 12 7 Guns 13 | . 8 5 Cannons 6 | . 4 2 Classes Destroyed 8 | 2 5 1 Worker 1 | . 1 . Tunneler 3 | 2 1 . Hauler 2 | . 2 . Recycler 6 | 1 5 . Mechanic 1 | . 1 . Swarmer 6 | . 6 . Grunt 6 | . 6 . Subdweller 7 | . . 7 Best Kill Streak 4 | 3 4 2 Combat Bots Only 3 | . 3 2 Max Kills in Single Turn 2 | 1 2 1 Gunslinging 1 | . 1 . Exploded . | . . . Melee . | . . . Uniques/NPCs Destroyed . | . . . Combat | -11 -10 -10 -------- Run | Yrd Mat Sub Hostile Shots Fired 68 | . 42 26 Missed 15 | . 7 8 Hits 53 | . 35 18 Projectile 53 | . 35 18 AOE 4 | . . 4 Critical Strikes 1 | . 1 . Damage Taken 964 | . 410 554 Core 254 | . 102 152 Absorbed by Shields . | . . . Core Remaining (%) 100 | 100 . . Volleys Fired 90 | 5 61 24 Largest 2 | 2 2 2 Hottest 90 | 40 60 90 Shots Fired 169 | 10 115 44 Gun 128 | 10 94 24 Cannon 41 | . 21 20 Launcher . | . . . Special . | . . . Kinetic 163 | 10 113 40 Thermal 4 | . . 4 Explosive . | . . . Electromagnetic 2 | . 2 . Robot Hit Streak 21 | 2 20 21 Robot Miss Streak 3 | 3 3 2 Penetration Max . | . . . Secondary Targets 1 | . 1 . Max Gunslinging Chain 1 | . 1 . Shots Hit Robots 115 | 3 80 32 Core Hits 47 | 3 32 12 Critical Kills 1 | 1 . . Critical Parts Destroyed . | . . . Critical Strikes 3 | 1 . 2 Destroy 2 | 1 . 1 Blast 1 | . . 1 Melee Attacks 16 | . 13 3 Impact . | . . . Slashing 16 | . 13 3 Piercing . | . . . Sneak Attacks 3 | . 3 . Combat Hostiles . | . . . Follow-up Attacks . | . . . Damage Inflicted 1876 | 50 1214 612 Guns 1241 | 50 825 366 Cannons 456 | . 210 246 Explosions . | . . . Melee 176 | . 176 . Ramming 3 | . 3 . Kinetic 1637 | 50 1035 552 Thermal 60 | . . 60 Explosive . | . . . Electromagnetic . | . . . Impact . | . . . Slashing 176 | . 176 . Piercing . | . . . Highest Corruption . | . . . Average Corruption . | . . . Corruption Purged . | . . . Corruption Blocked . | . . . Overload Shots . | . . . Overflow Damage 28 | . 28 . Projectiles . | . . . Explosions . | . . . Melee 28 | . 28 . Knockbacks 2 | . 2 . Impact . | . . . Kinetic 2 | . 2 . Secondary . | . . . Self-Inflicted Damage . | . . . Shots . | . . . Rammed 1 | . 1 . Targets Rammed 1 | . 1 . Kicked . | . . . Crushed . | . . . Highest Temperature 20 | . 20 . Average Temperature 5 | . 5 . Received Heat Transfer 243 | . 183 60 Siege Activations . | . . . Martial Activations . | . . . Shielding Activations . | . . . Robots Disrupted . | . . . Combat Hostiles . | . . . Robots Corrupted . | . . . Combat Hostiles . | . . . Parts Fried . | . . . Impact Corruptions . | . . . Robots Melted . | . . . Combat Hostiles . | . . . Parts Melted . | . . . Heat Transferred 75 | . . 75 Parts Sabotaged . | . . . Parts Stolen . | . . . Parts Stripped . | . . . Power Chain Reactions . | . . . Alert | -11 -10 -10 ------- Run | Yrd Mat Sub Maximum Alert Level . | . . . Low Security (%) 100 | 100 100 . Level 1 . | . . . Level 2 . | . . . Level 3 . | . . . Level 4 . | . . . Level 5 . | . . . High Security . | . . . Max Security . | . . . Peak Influence 80 | 10 80 . Initial . | . . . Average 18 | 1 19 . Influence Increases 466 | 15 451 . Destroy 0b10 Robot/C 240 | . 240 . Destroy 0b10 Robot/NC 65 | 15 50 . Destroy Leader 54 | . 54 . Successful Hack 23 | . 23 . Destroy Structure 9 | . 9 . Partial Spotted 15 | . 15 . Lose Combat Pursuer 60 | . 60 . Influence Decreases 466 | 15 451 . Time Decay 391 | 15 376 . Purge Threat 75 | . 75 . Squads Dispatched 3 | . 3 . Investigation 1 | . 1 . Extermination . | . . . Reinforcement 2 | . 2 . Assault . | . . . Garrison . | . . . Intercept . | . . . Searches Triggered . | . . . Construction Impeded . | . . . Haulers Reinforced . | . . . Active Scanning Responses . | . . . Cargo Convoy Interrupts . | . . . Stealth | -11 -10 -10 --------- Run | Yrd Mat Sub Distress Signals . | . . . Communications Jammed . | . . . Distress Signals . | . . . Times Spotted 32 | . 25 7 Peak Tracking Total 4 | . 4 2 Tactical Retreats 3 | . 3 . Traps | -11 -10 -10 ------- Run | Yrd Mat Sub Traps Triggered 2 | . 1 1 Indirectly . | . . . Trap Hack Attempts . | . . . Triggered . | . . . Disarmed . | . . . Reprogrammed . | . . . Reused . | . . . Traps Extracted . | . . . Installed . | . . . Triggered . | . . . Machines | -11 -10 -10 ---------- Run | Yrd Mat Sub Machines Disabled . | . . . Max in Single Turn . | . . . Machines Repaired . | . . . Machines Dismantled . | . . . Machines Sabotaged . | . . . Overloaded Fab Kills . | . . . Hacking | -11 -10 -10 --------- Run | Yrd Mat Sub Machines Accessed 6 | . 6 . Terminals 6 | . 6 . Fabricators . | . . . Repair Stations . | . . . Recycling Units . | . . . Scanalyzers . | . . . Garrison Access . | . . . Total Hacks 19 | . 19 . Successful 13 | . 13 . Failed 6 | . 6 . Catastrophic 1 | . 1 . Database Lockouts . | . . . Manual 14 | . 14 . Terminals 19 | . 19 . Fabricators . | . . . Repair Stations . | . . . Recycling Units . | . . . Scanalyzers . | . . . Garrison Access . | . . . Terminal Hacks 9 | . 9 . Robot Analysis 2 | . 2 . Terminal Index 2 | . 2 . Alert Level 1 | . 1 . Unreport Threat 2 | . 2 . Locate Traps 1 | . 1 . Recall Reinforcements 1 | . 1 . Fabricator Hacks . | . . . Repair Station Hacks . | . . . Recycling Unit Hacks . | . . . Scanalyzer . | . . . Garrison Access Hacks . | . . . Unauthorized Hacks 4 | . 4 . Terminals 4 | . 4 . Botnet 3 | . 3 . Operators 1 | . 1 . Fabricators . | . . . Repair Stations . | . . . Recycling Units . | . . . Scanalyzers . | . . . Garrison Access . | . . . Data Cores Recovered . | . . . Used . | . . . Hacking Detections 5 | . 5 . Full Trace Events . | . . . Feedback Events . | . . . Feedback Blocked . | . . . Robot Schematics Acquired . | . . . Robots Built . | . . . Authchips . | . . . Time . | . . . Total Robot Build Rating . | . . . Part Schematics Acquired . | . . . Parts Built . | . . . Authchips . | . . . Time . | . . . Total Part Build Rating . | . . . Parts Repaired . | . . . Time . | . . . Parts Recycled . | . . . Recycled Matter . | . . . Retrieved Matter . | . . . Retrieved Components . | . . . Parts Scanalyzed . | . . . Part Schematics Acquired . | . . . Parts Damaged . | . . . Bothacking | -11 -10 -10 ------------ Run | Yrd Mat Sub Used RIF Installer . | . . . Robots Hacked . | . . . Non-combat . | . . . Combat . | . . . Robot Hacks Applied . | . . . Relay Couplers Released . | . . . Fabnet Peak Effective % . | . . . Robots Rewired . | . . . Allies Hacked . | . . . Hacks Repelled . | . . . Allies | -11 -10 -10 -------- Run | Yrd Mat Sub Total Allies . | . . . Largest Group . | . . . Highest-Rated Group . | . . . Highest-Rated Ally . | . . . Total Orders . | . . . Ally Attacks . | . . . Total Damage . | . . . Kills . | . . . Allies Corrupted . | . . . Allies Melted . | . . . Intel | -11 -10 -10 ------- Run | Yrd Mat Sub Active Infowar (turns) 2726 | 29 1703 994 Seismic 2726 | 29 1703 994 Robot Analysis Total 2 | . 2 . Derelict Logs Recovered . | . . . Drone Launches . | . . . Drone Recoveries . | . . . Exploration | -11 -10 -10 ------------- Run | Yrd Mat Sub Turns Passed 2941 | 89 1703 1149 Spaces Moved 1703 | 61 1007 635 Core 4 | 4 . . Treads 594 | . 144 450 Legs . | . . . Wheels 1105 | 57 863 185 Hover . | . . . Flight . | . . . Fastest Speed 50 | 50 100 115 Average Speed 128 | 96 119 146 Slowest Speed 240 | 100 240 160 Overloaded Moves . | . . . Propulsion Burnouts . | . . . Robots Hopped . | . . . Potential Cave-ins . | . . . Cave-ins Triggered . | . . . Exploration Rate (%) 44 | 5 94 34 Regions Visited 2 Branch Regions 1 Pre-discovered Areas 1 | . . 1 Known Exits Taken . | . . . Unknown Exits Taken 2 | 1 1 . Scrap Searched . | . . . Spaces Dug 6 | . 6 . Terrain Destroyed 6 | . 6 . Melee 6 | . 6 . Projectile . | . . . AOE . | . . . Terrain Rammed . | . . . Walls Destroyed . | . . . Machines Disabled . | . . . Actions | -11 -10 -10 --------- Run | Yrd Mat Sub Total 2245 | 78 1367 800 Wait 363 | . 240 123 Move 1701 | 60 1006 635 Hop . | . . . Pick Up 21 | 6 12 3 Fast Attach 8 | 7 1 . Attach 2 | . . 2 Detach . | . . . Swap 28 | . 21 7 Drop 15 | . 12 3 Fire 90 | 5 61 24 Melee 16 | . 13 3 Ram . | . . . Kick . | . . . Crush 1 | . 1 . Escape Stasis . | . . . Rewire . | . . . Trap . | . . . Miscellaneous . | . . . Route ------- -11/Scrapyard -10/Materials (discovered 6 exits: [*Mat x3] / [*Min x2] / [*Sub]) -10/Subcaves History --------- Turn | Location | Event 17 | -11/Scrapyard | Discovered new exit (range 15) 90 | -11/Scrapyard | Entered Materials 300 | -10/Materials | Build established: Mutant 602 | -10/Materials | Discovered new exit (range 16) 911 | -10/Materials | Discovered new exit (range 16) 1482 | -10/Materials | Discovered new exit (range 16) 1584 | -10/Materials | Discovered new exit (range 16) 1632 | -10/Materials | Discovered new exit (range 15) 1779 | -10/Materials | Discovered new exit (range 9) 1793 | -10/Materials | Entered Subcaves 1842 | -10/Subcaves | Curiously followed by a Cobbler waking with a query about "LVR3C" 2012 | -10/Subcaves | Learned location of Zion (-7) 2012 | -10/Subcaves | Met a Zionite searching for "candidates" 2072 | -10/Subcaves | Core integrity fell below 50% 2448 | -10/Subcaves | Ambushed by Subdwellers from Twisted Machinery 2458 | -10/Subcaves | Core integrity fell below 20% 2942 | -10/Subcaves | Destroyed by Piercing Trap Last Messages --------------- Shield. 02459_ Ion Engine destroyed. 02460_ JE-IP7(R) destroyed. 02482_ Acquired 37 matter. 02484_ Acquired 14 matter. 02787_ Seismic Detector destroyed. 02788_ U6-706(O) collects matter. 02789_ 8L-8G7(R) destroyed. 02792_ Acquired 32 matter. 02796_ U6-706(O) collects matter. 02804_ Acquired 3 matter. 02832_ YX-KA3(R) destroyed. 02853_ Acquired 1 matter. 02854_ Acquired 31 matter. 02907_ U6-706(O) collects matter. 02919_ Acquired 5 matter. 02927_ Acquired 10 matter. 02942_ Triggered Piercing Trap. 02942_ Spikes shoot up from the floor. 02942_ Critical hit (Impale). Map ----- +----------------------------------------------------+ | ?????????????????????????????????????????????????? | | ?????????????????????????????????????????????????? | | ?????????????????????????????????????????????????? | | ?????????????????????????????????????????????????? | | ?????????????????????????????????????????????????? | | ?????????????????????????????????????????????????? | | ?????????????????????????????????????????????????? | | ?????????????????????????????????????????????????? | | ? ???????????????????????????????????????????????? | | ??????????????????????????????????????????????? | | ######????????????????????????????????????????? | | ????????????????????????????????????????? | | ???????""#?????????????????????????????? | | "##?????""#?????????????????????????????? | | "" ##?##? #?????????????????????????????? | | " ##"## #?????????????????????????????? | | " #" #?????????????????????????????? | | #"" ##????????????????????????????? | | # ## ?# ?????????????????????????????? | | ?? ## #?? #?????????????????????????????? | | ????# #### ##??????###???????????????????? | | ???## # ####### ##??????????????????? | | #### ## ###????????????????? | | # ### #????????????????? | | ## ##?# #????????????????? | | ### ### ## #?# @ #????????????????? | | ####??# #### ### ## ###???????????????? | | #####& #??# #### # ;;#???????????????? | | ### [ * ##??# ## # ;#???????????????? | | #### ###???# # " ;#??????????????? | | ???# ##?????# ###" "##??????????????? | | ??## #??????# #?? ""#???????????????? | | ?## #??????# ##??? ###???????????????? | | ?# #??????# O #????? #????????????????? | | ?# #????### ## ##???? #????????????????? | | ?# ##?### ## ##?? ###???????????????? | | ?# #?# ### # ?##????????????? | | ?# ### # ##???????????? | | ?## ## ## ???????????? | | #### ### ## " ????????????? | | ### & ### # "" ???????????? | | = #### ## """ ???????????? | | ### ### #### ## """????????????? | | ### ######?# ### #?????????? ? | | # ##### #????### #?## ##????????? ? | | ## #??# / ##?#### #### ##???????? ? | | # ##### ##?## # ########### | | = ## #??# ## #? | | # #??## # #? | | #???## ### # #? | +----------------------------------------------------+ Best States ------------- Heat Dissipation 25 Energy Generation 10 Energy Capacity 250 Matter Stores 375 Matter Capacity 500 Sight Range 16 Terrain Scan Density 10 Evasion (%) 40 Recoil Reduction 2 Item Schematics ----------------- None Robot Schematics ------------------ None Fabricated ------------ Nothing Repaired ---------- Nothing Alien Tech Used ----------------- None Achievements -------------- None Challenges ------------ None Game ------ Seed SmartTerrainDrivehammer Manual? 0 Play Time 00:27:11 Cumulative 1356.6 hours Start 2025.05.24 @ 20:10:01 End 2025.05.24 @ 20:39:44 Sessions 1 Manual Loads 0 Difficulty Rogue Special Mode None Game No. 492 Rogue 492 Adventurer 0 Explorer 0 Win Type - Total 32 Types 16/2/8/0/0/0/6/0/0/0 Lore% 83 Gallery% 83 Achievement% 85 Wizard Run 0 Options --------- Layout 1 ASCII 0 Keyboard 0 Movement Vi Keybinds 0 Fullscreen 0 Font 14/CherryShadow Map View 64x42 Zoom Use 0% Tactical HUD 1 Map Filters NONE Filters NONE Steam 1 RUN: d1f27356-330c-40c6-9796-90b013cfbac1